[Event "FIDE WCCC U12 2018"]
[Site "Santiago de Compostela"]
[Date "2018.11.09"]
[Round "5"]
[White "Laux, Dominik"]
[Black "Yavuz, Efe Metehan"]
[Result "1/2-1/2"]
[ECO "D35"]
[WhiteElo "1973"]
[BlackElo "1828"]
[Annotator "NA RC"]
[PlyCount "159"]
[EventDate "2018.11.04"]
[EventType "swiss"]
[EventCountry "ESP"]
[SourceTitle "playchess.com"]
[Source "ChessBase"]
[SourceQuality "1"]
[TimeControl "40/5400+30:1800+30"]

{[%evp 10,156,19,32767,22,10,8,32767,13,0,11,-8,10,-8,15,-17,2,0,0,0,6,0,16,0,0,0,7,0,32767,32767,32767,32767,6,32767,32767,32767,32767,32767,32767,0,34,29,25,32767,13,32767,13,10,32767,32767,32767,0,0,32767,0,32767,32767,60,32767,71,123,89,32767,64,145,123,32767,32767,32767,97,32767,99,32767,32767,91,32767,64,62,68,64,54,37,81,64,77,60,32767,99,85,64,99,32767,85,32767,87,77,77,87,89,78,95,71,70,78,72,0,84,0,95,74,32767,32767,89,70,69,81,219,32767,70,75,70,95,74,71,95,70,78,77,81,0,73,77,72,63,65,391,316,70,74,456,74,0,77,409,293,32767,321,66,67]} 1. d4 {[%emt 0:00:00]} d5 {[%emt 0:00:00]} 2. c4 {[%emt 0:00:00]} e6 {[%emt 0:00:04]} 3. Nc3 {[%emt 0:00:33]} Nf6 {[%emt 0:00:10]} 4. Bf4 {[%emt 0:05:35]} Bd6 {[%emt 0:01:59]} 5. Bxd6 {[%emt 0:04:54]} Qxd6 {[%emt 0:00:09]} 6. e3 {[%emt 0:00:54] D35: Queen's Gambit Declined: Exchange Variation} O-O {[%emt 0:00:31]} 7. Nf3 {[%emt 0:01:16]} b6 {[%emt 0:02:44]} 8. Rc1 {[%emt 0:04:20]} a6 {[%emt 0:01:06] LiveBook: 3 Games} 9. Bd3 $146 {[%emt 0:03:25]} ({Predecessor:} 9. cxd5 exd5 10. Bd3 c5 11. dxc5 bxc5 12. O-O Bb7 13. Qb3 Bc6 {1-0 (72) Fedoseev,V (2718)-Akobian,V (2647) Riadh 2017}) 9... Bb7 {[%emt 0:01:43]} 10. O-O {[%emt 0:02:33]} Nbd7 {[%emt 0:06:05]} 11. Qc2 {[%emt 0:03:29]} Rac8 {[%emt 0:04:24]} 12. e4 {[%emt 0:07:06]} dxe4 {[%emt 0:00:41]} 13. Nxe4 {[%emt 0:00:20]} Bxe4 {[%emt 0:01:24]} 14. Bxe4 {[%emt 0:00:12]} Nxe4 {[%emt 0:01:55]} 15. Qxe4 {[%emt 0:00:04]} Nf6 {[%emt 0:02:41]} 16. Qe2 {[%emt 0:03:44]} c5 {[%emt 0:04:18]} 17. Rfd1 {[%emt 0:04:12]} Rfd8 {[%emt 0:01:34]} 18. Rd2 {[%emt 0:07:53]} cxd4 {[%emt 0:15:51]} 19. Rxd4 {[%emt 0:03:24]} Qb4 {[%emt 0:01:21]} 20. Qd3 {[%emt 0:07:10]} Rxd4 {[%emt 0:02:49]} 21. Qxd4 {[%emt 0:00:07]} h6 {[%emt 0:00:31]} 22. h3 {[%emt 0:04:19]} a5 {[%emt 0:12:46]} 23. Ne5 {[%emt 0:05:35]} Qc5 {[%emt 0:02:20]} 24. Qxc5 {[%emt 0:01:26]} bxc5 {[%emt 0:01:40]} 25. Rd1 {[%emt 0:02:41]} Rb8 {[%emt 0:01:07]} 26. b3 {[%emt 0:04:02]} a4 {[%emt 0:01:48]} 27. bxa4 {[%emt 0:08:33]} Ra8 {[%emt 0:01:19]} 28. a5 {[%emt 0:01:55]} Rxa5 {[%emt 0:11:01]} 29. Rd8+ {[%emt 0:01:34]} Kh7 {[%emt 0:00:05]} 30. Nxf7 {[%emt 0:02:04]} Rxa2 {[%emt 0:00:17]} 31. Rc8 {[%emt 0:00:51]} Ne4 {[%emt 0:03:38]} 32. f3 {[%emt 0:03:05]} Ra1+ {[%emt 0:00:07]} 33. Kh2 {[%emt 0:00:18]} Nd2 {[%emt 0:00:43]} 34. Rxc5 {[%emt 0:01:37]} Rc1 {[%emt 0:00:35]} ({Better is} 34... Ra2 $14) 35. Ne5 {[%emt 0:02:12]} Rc2 {[%emt 0:00:45]} 36. Kg1 {[%emt 0:01:44]} ({White should play} 36. h4 $16) 36... h5 {[%emt 0:01:30]} ({Better is} 36... Nb3 37. Rc8 Nd4) 37. Rc6 {[%emt 0:01:04]} Nb3 {[%emt 0:01:47]} 38. Rxe6 {[%emt 0:03:14]} Na5 {[%emt 0:00:40]} 39. Ra6 {[%emt 0:00:55]} Nxc4 {[%emt 0:00:22]} 40. Rc6 {[%emt 0:00:00]} Ne3 {[%emt 0:00:00]} 41. Rxc2 {[%emt 0:02:21]} Nxc2 {[%emt 0:02:09]} 42. Kf2 {[%emt 0:01:36]} g5 {[%emt 0:03:28]} 43. Ke2 {[%emt 0:02:26]} Kg7 {[%emt 0:07:23]} 44. Kd2 {[%emt 0:04:04]} Nd4 {[%emt 0:06:28]} 45. Ke3 {[%emt 0:02:07]} (45. Kd3 $5 {[%cal Rd3d4]} Nb3 46. Nd7 $16) 45... Ne6 {[%emt 0:03:43]} 46. Nd3 {[%emt 0:02:13]} Kf6 {[%emt 0:03:05]} 47. Ke4 {[%emt 0:01:19]} h4 {[%emt 0:00:21] [#]} 48. f4 $1 {[%emt 0:02:13]} gxf4 {[%emt 0:02:02]} 49. Ne1 {[%emt 0:02:24]} Kg5 {[%emt 0:02:34]} 50. Nf3+ {[%emt 0:00:18]} Kh5 {[%emt 0:00:59]} 51. Kf5 {[%emt 0:01:41]} Nc7 {[%emt 0:01:35]} 52. Ke5 {[%emt 0:00:55]} Nb5 {[%emt 0:01:34]} 53. Kxf4 {[%emt 0:04:24]} Nc3 {[%emt 0:02:23]} 54. Nd4 {[%emt 0:01:20]} Nd5+ {[%emt 0:00:03]} 55. Ke4 {[%emt 0:01:17]} Nc3+ $1 {[%emt 0:00:12]} 56. Kf5 {[%emt 0:00:54]} Nd5 $1 {[%emt 0:00:10]} 57. Ke4 {[%emt 0:01:13]} Nc3+ {[%emt 0:00:01]} 58. Kf5 {[%emt 0:00:30]} Nd5 {[%emt 0:00:01]} 59. Nc2 {[%emt 0:01:32]} Nc3 {[%emt 0:01:21]} 60. Nb4 {[%emt 0:01:00]} Ne2 {[%emt 0:00:42]} 61. Nd5 {[%emt 0:00:48]} Ng3+ {[%emt 0:00:30]} (61... Nd4+ 62. Kf4 Nc6 63. Nf6+ Kg6) 62. Kf6 {[%emt 0:00:17]} Ne4+ {[%emt 0:00:10]} 63. Ke5 {[%emt 0:00:26]} Ng3 $1 {[%emt 0:00:36] [#]} 64. Nf6+ $2 {[%emt 0:01:58]} (64. Nf4+ $1 $18 {and the rest is easy.} Kh6 65. Ne6) 64... Kg6 {[%emt 0:00:03]} 65. Ne4 {[%emt 0:00:12]} Ne2 {[%emt 0:00:10]} 66. Nd2 {[%emt 0:00:30]} Kg5 {[%emt 0:00:21]} 67. Nf3+ {[%emt 0:00:15]} Kh5 {[%emt 0:00:08]} 68. Ne1 {[%emt 0:00:40]} Kg5 {[%emt 0:01:16] [#]} 69. Nf3+ {[%emt 0:00:10]} ({Better is} 69. Nd3 $1 $16) 69... Kh5 {[%emt 0:00:02]} 70. Nd4 {[%emt 0:00:25]} Ng3 {[%emt 0:01:08]} 71. Ne6 {[%emt 0:00:33]} Kg6 {[%emt 0:01:39] [#]} 72. Kf4 $1 {[%emt 0:01:12]} Kh5 {[%emt 0:00:22]} 73. Nd4 {[%emt 0:00:16]} Nf1 $1 $11 {[%emt 0:01:10] remains equal.} 74. Ne2 {[%emt 0:00:25]} Kg6 {[%emt 0:00:42] [#]} 75. Nd4 $2 {[%emt 0:01:29]} (75. Nc3 $1 $18 {[%cal Rc3e4]} Kh6 76. Nd5) 75... Kh6 $1 {[%emt 0:04:21]} 76. Nf5+ {[%emt 0:01:24]} Kh5 {[%emt 0:00:03]} 77. Nd4 {[%emt 0:01:25]} Kh6 $18 {[%emt 0:01:18]} 78. Nf3 {[%emt 0:00:10]} Kh5 {[%emt 0:00:04]} 79. Nh2 {[%emt 0:00:28]} Nxh2 {[%emt 0:00:30]} 80. g3 {[%emt 0:00:04]} 1/2-1/2

[Event "FIDE WCCC U12 2018"]
[Site "Santiago de Compostela"]
[Date "2018.11.09"]
[Round "5"]
[White "Thomforde-Toates, Noah"]
[Black "Wu, Eric"]
[Result "1-0"]
[ECO "B01"]
[WhiteElo "1970"]
[BlackElo "1753"]
[Annotator "NA RC"]
[PlyCount "67"]
[EventDate "2018.11.04"]
[EventType "swiss"]
[EventCountry "ESP"]
[SourceTitle "playchess.com"]
[Source "ChessBase"]
[SourceQuality "1"]
[TimeControl "40/5400+30:1800+30"]

{[%evp 11,66,10,8,1,0,5,12,0,0,0,-4,32767,32767,7,42,45,59,32767,32767,0,4,32767,32767,-9,32767,0,32767,32767,32767,-66,-13,-69,-37,32767,32767,32767,270,32767,299,32767,32767,32767,32767,358,32767,32767,32767,32767,32767,601,29995,29990,29992,32767,29998,29999,29999]} 1. e4 {[%emt 0:00:00]} d5 {[%emt 0:00:16]} 2. exd5 {[%emt 0:00:00]} Qxd5 {[%emt 0:01:08]} 3. Nc3 {[%emt 0:00:06]} Qd6 {[%emt 0:01:40]} 4. Nf3 {[%emt 0:02:29]} Nf6 {[%emt 0:01:57]} 5. d4 {[%emt 0:02:49]} a6 {[%emt 0:02:15]} 6. a4 {[%emt 0:02:54] B01: Scandinavian Defence} (6. Bd3 $14 Bg4 7. h3 Bh5 8. O-O Nc6 9. Ne4 Nxe4 10. Bxe4 e6 11. c3 Bg6 12. Bxc6+ Qxc6 13. Ne5 Qb6 {1-0 (58) Anand,V (2767)-Demidov,M (2523) chess.com INT 2018}) 6... Bg4 {[%emt 0:01:29]} 7. h3 {[%emt 0:03:03]} Bh5 {[%emt 0:01:06]} 8. Be3 {[%emt 0:06:57]} Nc6 {[%emt 0:03:05]} 9. Be2 {[%emt 0:05:50]} O-O-O {[%emt 0:06:28]} 10. Ng5 $146 {[%emt 0:05:45]} ({Predecessor:} 10. O-O Bxf3 11. Bxf3 Nxd4 12. Bxd4 Qxd4 13. Qe2 e6 {½-½ (43) Sloper,C (1503)-Stava,S (1615) Oslo 2006}) 10... Bg6 {[%emt 0:05:09]} 11. Bd3 {[%emt 0:04:08]} Nd5 {[%emt 0:07:44]} 12. Qg4+ {[%emt 0:08:26]} Kb8 {[%emt 0:04:12]} 13. Nxd5 {[%emt 0:04:03]} Qxd5 {[%emt 0:03:40]} 14. Bxg6 {[%emt 0:10:48]} hxg6 {[%emt 0:01:49]} 15. O-O {[%emt 0:04:47]} ({White should play} 15. Qf3 $14 f6 16. Qxd5 Rxd5 17. Ne6) 15... e5 {[%emt 0:01:39]} 16. dxe5 {[%emt 0:11:13]} Nxe5 {[%emt 0:00:48]} 17. Qe2 {[%emt 0:01:44]} Bd6 {[%emt 0:03:08]} 18. Rfd1 {[%emt 0:04:42]} Qc6 {[%emt 0:02:50]} 19. c4 {[%emt 0:04:38]} Rde8 {[%emt 0:03:40]} 20. Rac1 {[%emt 0:03:50]} f6 {[%emt 0:06:35]} (20... Rh4 $17) 21. c5 {[%emt 0:02:10]} Be7 {[%emt 0:00:57]} 22. f4 {[%emt 0:03:49]} Nd7 {[%emt 0:01:29]} 23. Nf7 {[%emt 0:01:09]} Rhf8 $2 {[%emt 0:05:01]} (23... Bxc5 $17 {stays on course.} 24. Rxc5 Nxc5 25. Nxh8 Rxh8) 24. Nd6 {[%emt 0:01:25]} Bxd6 {[%emt 0:07:15]} 25. cxd6 {[%emt 0:00:15]} Qe4 {[%emt 0:01:42]} 26. dxc7+ {[%emt 0:00:40]} Kc8 {[%emt 0:00:33]} 27. Rc3 {[%emt 0:01:07]} Qxf4 {[%emt 0:01:37]} 28. Rxd7 {[%emt 0:00:38]} Qxa4 {[%emt 0:02:11]} 29. Rd8+ {[%emt 0:00:18]} Rxd8 {[%emt 0:00:17]} 30. cxd8=Q+ {[%emt 0:00:12]} Kxd8 {[%emt 0:00:04]} 31. Qd2+ {[%emt 0:00:28]} Ke8 {[%emt 0:00:28]} 32. Rc8+ {[%emt 0:00:23]} Kf7 {[%emt 0:00:11]} 33. Qd5+ {[%emt 0:00:06]} Ke7 {[%emt 0:00:23]} 34. Bc5# {[%emt 0:00:02]} 1-0

[Event "FIDE WCCC U12 2018"]
[Site "Santiago de Compostela"]
[Date "2018.11.09"]
[Round "5"]
[White "Ano Pla, Gerard"]
[Black "Razafindratsima, Timothe"]
[Result "0-1"]
[ECO "D85"]
[WhiteElo "1914"]
[BlackElo "2092"]
[Annotator "NA RC"]
[PlyCount "100"]
[EventDate "2018.11.04"]
[EventType "swiss"]
[EventCountry "ESP"]
[SourceTitle "playchess.com"]
[Source "ChessBase"]
[SourceQuality "1"]
[TimeControl "40/5400+30:1800+30"]

{[%evp 18,99,32,9,2,4,0,0,0,0,7,-5,0,-24,0,0,0,-30,32767,32767,32767,32767,32767,32767,0,-12,18,32767,32767,32767,-26,-22,32767,32767,32767,-18,-22,-18,-13,-16,32767,-20,-13,32767,-15,-27,-26,-22,-29,32767,32767,32767,32767,-67,-68,32767,32767,32767,32767,32767,-199,-199,-210,-207,-210,-296,-357,-349,-343,-493,-941,-613,-1436,-766,-1254,-5477,-5306,-5293,-5404,32767,-12843,-29973,-29983,-12845]} 1. d4 {[%emt 0:00:00]} Nf6 {[%emt 0:00:00]} 2. c4 {[%emt 0:00:00]} g6 {[%emt 0:00:00]} 3. Nc3 {[%emt 0:00:00]} d5 {[%emt 0:00:00]} 4. cxd5 {[%emt 0:00:28]} Nxd5 {[%emt 0:00:00]} 5. Bd2 {[%emt 0:00:37]} Bg7 {[%emt 0:00:30]} 6. e4 {[%emt 0:00:37]} Nxc3 {[%emt 0:02:07]} 7. Bxc3 {[%emt 0:00:10]} O-O {[%emt 0:00:16]} 8. Qd2 {[%emt 0:01:49]} b6 {[%emt 0:01:02] D85: Grünfeldindisch (Abtauschvariante, 7.Sf3 bzw nicht 7.Lc4)} (8... c5 9. d5 Bxc3 10. bxc3 Qd6 11. f4 e6 12. Bc4 b5 13. Bxb5 exd5 14. Bc4 Bb7 15. Nf3 Rd8 16. Bxd5 Bxd5 17. Qxd5 Qxd5 18. exd5 Rxd5 {½-½ (29) Tomashevsky,E (2702)-Nepomniachtchi,I (2768) Satka 2018}) 9. Nf3 {[%emt 0:04:04]} Bb7 {[%emt 0:00:33]} 10. Bd3 {[%emt 0:06:17]} Nd7 {[%emt 0:02:50]} 11. O-O {[%emt 0:02:13]} e6 {[%emt 0:01:39]} 12. Bc2 {[%emt 0:04:03]} c5 {[%emt 0:05:36]} 13. Rad1 {[%emt 0:02:47]} cxd4 {[%emt 0:15:18]} 14. Bxd4 $146 {[%emt 0:07:17]} ({Vorgänger:} 14. Nxd4 Nc5 15. Qe3 Qe7 16. Rfe1 Rac8 17. e5 a6 18. f4 Rfd8 19. b4 Nd7 20. Bb3 Nf8 21. a3 Bd5 22. Bc2 Qb7 23. Rd2 {½-½ (23) Suleymenov,A (2099)-Nguyen,T (2286) Durban 2014}) 14... Nf6 {[%emt 0:07:04]} 15. Qe2 {[%emt 0:04:00]} Qc8 {[%emt 0:02:32]} 16. b4 {[%emt 0:09:41]} Rd8 {[%emt 0:04:02]} 17. Rc1 {[%emt 0:02:51]} Qd7 {[%emt 0:02:11]} 18. Rfd1 {[%emt 0:06:38]} Qe7 {[%emt 0:01:04]} 19. a3 {[%emt 0:01:30]} Rac8 {[%emt 0:00:29]} 20. Bb1 {[%emt 0:04:35]} Qe8 {[%emt 0:08:20]} 21. Qb2 {[%emt 0:04:13]} Nh5 {[%emt 0:05:29]} 22. Rxc8 {[%emt 0:02:38]} Bxc8 {[%emt 0:02:26]} 23. Rc1 {[%emt 0:02:56]} Bxd4 {[%emt 0:11:25]} 24. Nxd4 {[%emt 0:00:44]} Nf4 {[%emt 0:01:30]} 25. Ne2 {[%emt 0:07:34]} Nxe2+ {[%emt 0:03:05]} 26. Qxe2 {[%emt 0:00:06]} Qa4 {[%emt 0:00:09]} 27. Qf3 {[%emt 0:02:26]} a5 {[%emt 0:02:50]} 28. Bc2 {[%emt 0:02:56]} Qc6 {[%emt 0:01:36]} 29. Rd1 $1 {[%emt 0:01:34]} Rxd1+ {[%emt 0:03:41]} 30. Qxd1 {[%emt 0:00:24]} Qc3 {[%emt 0:00:42]} 31. bxa5 {[%emt 0:00:40]} bxa5 {[%emt 0:00:41]} 32. a4 {[%emt 0:00:33]} Bb7 {[%emt 0:00:32]} 33. h3 {[%emt 0:02:57]} Qb4 {[%emt 0:01:15]} 34. Qb1 {[%emt 0:04:52]} Kf8 {[%emt 0:06:43]} 35. Qd1 {[%emt 0:03:48]} (35. Qxb4+ $11 axb4 36. Kf1) 35... Ke7 {[%emt 0:00:54]} 36. Qe2 {[%emt 0:01:10]} Bc6 {[%emt 0:00:52]} 37. Qe3 {[%emt 0:02:18]} Bxa4 {[%emt 0:03:44]} 38. Bxa4 {[%emt 0:00:32]} Qxa4 {[%emt 0:00:09]} 39. Qc5+ {[%emt 0:00:12]} Kf6 {[%emt 0:00:41]} 40. Qc3+ {[%emt 0:00:00]} e5 {[%emt 0:00:00]} 41. Qd3 {[%emt 0:04:16]} (41. Kh2 $142) 41... Qa1+ {[%emt 0:01:51]} 42. Kh2 {[%emt 0:00:07]} a4 {[%emt 0:00:18]} 43. Qd6+ {[%emt 0:00:24]} (43. f4 $142 Qd4 44. Qf3) 43... Kg7 {[%emt 0:00:09]} 44. f4 {[%emt 0:01:47] [#]} Qd4 $1 {[%emt 0:02:54]} 45. Qe7 {[%emt 0:07:28]} exf4 {[%emt 0:04:29]} 46. e5 {[%emt 0:01:06] [#]} f3 $1 {[%emt 0:04:10]} 47. Qf6+ {[%emt 0:01:29]} Kg8 {[%emt 0:00:06]} 48. gxf3 {[%emt 0:08:47]} a3 {[%emt 0:00:49]} 49. Qc6 {[%emt 0:02:40]} Qxe5+ {[%emt 0:00:13]} 50. f4 $19 {[%emt 0:01:37]} Qb2+ {[%emt 0:00:42]} 0-1

[Event "FIDE WCCC U12 2018"]
[Site "Santiago de Compostela"]
[Date "2018.11.09"]
[Round "5"]
[White "Haack, Kevin"]
[Black "Pavesi, Brando"]
[Result "1-0"]
[ECO "A06"]
[WhiteElo "1911"]
[BlackElo "2073"]
[Annotator "NA RC"]
[PlyCount "61"]
[EventDate "2018.11.04"]
[EventType "swiss"]
[EventCountry "ESP"]
[SourceTitle "playchess.com"]
[Source "ChessBase"]
[SourceQuality "1"]
[TimeControl "40/5400+30:1800+30"]

{[%evp 11,61,8,7,-2,-12,-27,3,-8,14,32767,22,2,21,0,12,32767,32767,32767,32767,32767,32767,-86,-2,32767,0,32767,0,32767,32767,32767,20,32767,14,32767,20,0,0,6,32767,32767,32767,32767,102,32767,32767,125,32767,147,32767,164,154,108]} 1. Nf3 {[%emt 0:00:00]} d5 2. g3 {[%emt 0:00:00]} Nf6 {[%emt 0:01:30]} 3. Bg2 {[%emt 0:00:00]} c6 4. O-O {[%emt 0:00:31]} Nbd7 {[%emt 0:03:00]} 5. d3 {[%emt 0:02:31]} e5 {[%emt 0:02:44]} 6. Nbd2 {[%emt 0:01:01]} Bd6 {[%emt 0:02:13]} 7. e4 {[%emt 0:06:55]} O-O {[%emt 0:03:50]} 8. Re1 {[%emt 0:02:28]} Re8 {[%emt 0:07:50]} 9. b3 {[%emt 0:07:13]} Nf8 {[%emt 0:08:46] LiveBook: 4 Games B10: Caro-Kann: 2 d3 and 2 c4} 10. Bb2 {[%emt 0:07:49]} Ng6 {[%emt 0:04:29]} 11. Rc1 $146 {[%emt 0:04:28]} ({Predecessor:} 11. Nf1 Bd7 12. N3d2 Bc5 13. Ne3 Qb6 14. Qe2 Rad8 15. exd5 Bxe3 16. fxe3 cxd5 17. Kh1 {0-1 (43) Eliseev,U (2550)-Dreev,A (2668) Moscow 2013}) 11... a5 {[%emt 0:10:22]} 12. a3 {[%emt 0:05:12]} d4 {[%emt 0:06:58]} 13. Nc4 {[%emt 0:08:03]} Bf8 {[%emt 0:06:31]} 14. c3 {[%emt 0:03:30]} b5 {[%emt 0:02:55]} 15. Ncd2 {[%emt 0:00:22]} c5 {[%emt 0:02:32]} 16. c4 {[%emt 0:09:41]} (16. a4 $11 {keeps the balance.}) 16... Qb6 {[%emt 0:03:44]} ({Black should try} 16... b4 $17) 17. cxb5 {[%emt 0:02:05]} Qxb5 {[%emt 0:02:58]} 18. a4 {[%emt 0:01:31]} Qa6 {[%emt 0:17:25]} 19. Ba3 {[%emt 0:03:46]} Nd7 {[%emt 0:01:04]} 20. Nc4 {[%emt 0:01:13]} Nb6 {[%emt 0:02:12]} 21. Nfd2 {[%emt 0:04:24]} Rb8 {[%emt 0:02:30]} 22. Rb1 {[%emt 0:02:48]} Be6 {[%emt 0:01:41]} 23. Nxb6 {[%emt 0:02:50]} Rxb6 {[%emt 0:01:57]} 24. Nc4 {[%emt 0:01:33]} Bxc4 {[%emt 0:01:24]} 25. bxc4 {[%emt 0:00:48]} Rxb1 {[%emt 0:01:33]} 26. Qxb1 {[%emt 0:00:08]} Bd6 {[%emt 0:01:28]} (26... Qd6 $11) 27. Qb5 {[%emt 0:03:41]} Qxb5 28. axb5 {[%emt 0:01:13]} Ne7 {[%emt 0:01:28]} 29. Ra1 {[%emt 0:02:00]} Nc8 {[%emt 0:00:44]} 30. Bc1 {[%emt 0:01:02]} Bc7 $16 {[%emt 0:00:17]} 31. Bd2 {[%emt 0:00:38]} 1-0

[Event "FIDE WCCC U12 2018"]
[Site "Santiago de Compostela"]
[Date "2018.11.09"]
[Round "5"]
[White "Ristic, Luka"]
[Black "Silich, Yahor"]
[Result "1-0"]
[ECO "B38"]
[WhiteElo "1897"]
[BlackElo "2058"]
[Annotator "NA RC"]
[PlyCount "59"]
[EventDate "2018.11.04"]
[EventType "swiss"]
[EventCountry "ESP"]
[SourceTitle "playchess.com"]
[Source "ChessBase"]
[SourceQuality "1"]
[TimeControl "40/5400+30:1800+30"]

{[%evp 26,59,48,58,32767,50,47,-10,31,15,31,10,27,3,31,11,32767,32767,32767,32767,32767,122,96,97,32767,32767,267,272,328,427,423,419,32767,29995,29995,29996]} 1. e4 {[%emt 0:00:00]} c5 {[%emt 0:00:00]} 2. Nf3 {[%emt 0:00:00]} Nc6 {[%emt 0:00:00]} 3. d4 {[%emt 0:00:00]} cxd4 {[%emt 0:00:00]} 4. Nxd4 {[%emt 0:00:07]} g6 {[%emt 0:00:12]} 5. c4 {[%emt 0:00:11]} Bg7 {[%emt 0:00:20]} 6. Be3 {[%emt 0:00:06]} Nf6 {[%emt 0:00:06]} 7. Nc3 {[%emt 0:00:04]} O-O {[%emt 0:00:17]} 8. Be2 {[%emt 0:00:16]} d6 {[%emt 0:00:39]} 9. O-O {[%emt 0:00:08]} Bd7 {[%emt 0:00:32]} 10. f3 {[%emt 0:00:52]} Nxd4 {[%emt 0:01:45]} 11. Bxd4 {[%emt 0:00:14]} Bc6 {[%emt 0:00:36]} 12. Qd2 {[%emt 0:00:10]} Nd7 {[%emt 0:02:02]} 13. Be3 {[%emt 0:00:38]} a5 {[%emt 0:02:01]} 14. b3 {[%emt 0:04:56]} Nc5 {[%emt 0:01:44] B38: Sicilian: Maroczy Bind with 5...Bg7 and 7...0-0} 15. Rad1 {[%emt 0:04:04]} (15. Rab1 Qb6 16. Rfc1 Rfc8 17. Bf1 Qb4 18. Qb2 Qb6 19. Kh1 Qd8 20. Qd2 e6 21. Bg5 Qf8 22. Rd1 h6 23. Be3 Rd8 24. a3 Nd7 25. b4 axb4 26. axb4 {0-1 (41) Wang,H (2690)-Bu,X (2713) China 2017}) 15... Qb6 {[%emt 0:03:31]} 16. Kh1 {[%emt 0:05:19]} (16. Nb5 $14) 16... Rfc8 {[%emt 0:02:56]} 17. Nd5 {[%emt 0:15:02]} Bxd5 {[%emt 0:01:30]} 18. exd5 {[%emt 0:00:37]} Qb4 {[%emt 0:04:24]} 19. f4 $146 {[%emt 0:03:30]} ({Predecessor:} 19. Qc2 a4 20. Rb1 axb3 21. axb3 Qc3 22. Qxc3 Bxc3 {0-1 (52) Narendran,G (1918)-Koepke,C (2290) Tegernsee 2017}) 19... Qa3 {[%emt 0:10:09]} 20. Rc1 {[%emt 0:11:11]} Bf6 {[%emt 0:15:39]} 21. Bg4 {[%emt 0:06:35]} Rcb8 {[%emt 0:08:09]} 22. f5 {[%emt 0:06:46]} Qb4 {[%emt 0:05:18]} 23. fxg6 {[%emt 0:01:03]} hxg6 {[%emt 0:00:52]} 24. Qe2 {[%emt 0:02:13]} Kg7 {[%emt 0:09:01]} 25. Bd2 {[%emt 0:03:30]} Qb6 {[%emt 0:05:55] [#]} 26. Bc3 $1 {[%emt 0:00:35]} Re8 {[%emt 0:01:08] [#]} 27. Qf3 $1 {[%emt 0:01:57]} Qd8 {[%emt 0:03:46]} 28. Rce1 {[%emt 0:01:33]} Bxc3 {[%emt 0:06:23]} 29. Qxf7+ {[%emt 0:01:13]} ({Less strong is} 29. Qxc3+ f6 $16) 29... Kh6 {[%emt 0:00:04]} 30. Re3 {[%emt 0:00:11]} 1-0